bitfinex-derivatives/quotes_BTCF0:USTF0_20250218
["timestamp","ask_amount","ask_price","bid_price","bid_amount"]
[1739895495832,2e-08,95499.0,95498.0,2.55105542]
[1739895496029,1.96650023,95510.0,95498.0,2.34156832]
[1739895496233,1.96650023,95510.0,95509.0,0.5702629]
[1739895496828,1.96650023,95510.0,95509.0,2.0702629]
[1739895497127,1.96650023,95510.0,95509.0,3.23023922]
[1739895497128,0.62091549,95510.0,95509.0,3.23023922]
[1739895497335,0.19043871,95510.0,95509.0,3.23023922]
[1739895497528,1.93837373,95520.0,95518.0,0.2094432]
[1739895497727,1.93837373,95520.0,95519.0,0.98206832]
[1739895498133,1.93837373,95520.0,95519.0,1.41786832]
[1739895498329,1.93837373,95520.0,95519.0,2.91786832]
[1739895499021,1.89779373,95520.0,95519.0,2.91786832]
[1739895499221,1.89779373,95520.0,95519.0,2.91986832]
[1739895499825,1.87666427,95520.0,95519.0,2.91986832]
[1739895500024,1.50465279,95520.0,95519.0,2.91986832]
[1739895500226,2.0,95540.0,95519.0,3.28066832]
[1739895500522,0.3608,95588.0,95541.0,0.0523479]
[1739895500722,0.1413,95572.0,95570.0,0.12642283]
[1739895500918,0.20949,95571.0,95566.0,0.7216]
[1739895501138,0.20949,95567.0,95566.0,0.7216]
[1739895501824,0.20949,95567.0,95566.0,2.2216]
[1739895502131,0.1403,95571.0,95566.0,2.2216]
[1739895502132,0.1403,95571.0,95570.0,0.2093292]
[1739895502333,0.11829008,95600.0,95566.0,0.85489294]
[1739895502528,0.24304,95596.0,95595.0,0.3608]
[1739895502727,0.24304,95596.0,95595.0,1.97728]
[1739895502931,0.45253,95596.0,95595.0,1.97728]
[1739895503134,0.34789,95596.0,95595.0,2.0700745]
[1739895503743,0.34789,95596.0,95595.0,1.5]
[1739895503744,0.45249,95596.0,95595.0,1.5]
[1739895503932,0.45249,95596.0,95588.0,0.11336832]
[1739895504128,0.31409,95589.0,95586.0,0.00015693]
[1739895504334,0.20949,95587.0,95586.0,0.00015693]
[1739895504638,0.20949,95591.0,95586.0,0.36095693]
[1739895504830,0.1,95600.0,95590.0,1.5]
[1739895504831,0.20949,95595.0,95590.0,1.5]
[1739895505035,0.20949,95597.0,95595.0,0.2092745]
[1739895505234,0.1,95600.0,95598.0,0.2092679]
[1739895505434,0.1,95600.0,95599.0,0.3608]
[1739895505639,0.1,95600.0,95599.0,2.19674]
[1739895505936,0.1,95600.0,95599.0,2.0803]
[1739895506145,0.1,95600.0,95599.0,2.99262]
[1739895506335,0.1,95600.0,95599.0,3.01115781]
[1739895507833,0.4296,95623.0,95599.0,3.31115781]
[1739895508035,0.4296,95623.0,95622.0,0.3608]
[1739895508340,0.4296,95623.0,95622.0,0.4772]
[1739895508537,0.63909,95623.0,95622.0,0.4772]
[1739895508732,0.63909,95623.0,95622.0,0.3608]
[1739895509441,0.63909,95623.0,95622.0,0.3618]
[1739895510044,0.63909,95623.0,95622.0,1.8618]
[1739895510238,0.45069272,95623.0,95622.0,1.8618]
[1739895511143,0.23088954,95623.0,95622.0,1.8618]
[1739895512040,0.33544954,95623.0,95622.0,1.8618]
[1739895512435,0.33544954,95623.0,95622.0,0.001]
[1739895512635,0.33544954,95623.0,95618.0,0.91352]
[1739895512835,0.31409,95619.0,95618.0,0.91212]
[1739895514155,0.31409,95619.0,95618.0,1.1213442]
[1739895514335,0.20949,95619.0,95618.0,1.1213442]
[1739895515241,0.20949,95619.0,95618.0,0.91212]
[1739895515951,0.20949,95619.0,95618.0,2.41212]
[1739895516244,0.31409,95619.0,95618.0,2.41212]
[1739895517552,0.20949,95619.0,95618.0,2.41212]
[1739895518143,0.1414,95638.0,95618.0,2.41212]
[1739895518352,0.24596,95638.0,95636.0,0.3608]
[1739895518649,0.1414,95638.0,95637.0,0.11636]
[1739895519038,0.45545,95638.0,95637.0,0.11636]
[1739895519240,0.45545,95638.0,95636.0,0.3608]
[1739895519438,0.31405,95637.0,95636.0,0.3608]
[1739895520546,0.31405,95637.0,95625.0,0.2092074]
[1739895520747,0.20949,95624.0,95623.0,1.1224932]
[1739895520948,0.05249588,95624.0,95623.0,1.13961453]
[1739895521448,0.05249588,95624.0,95623.0,1.1210932]
[1739895521651,0.15705588,95624.0,95623.0,0.91188]
[1739895521947,0.15705588,95624.0,95623.0,2.41188]
[1739895522453,0.15705588,95624.0,95623.0,2.6210932]
[1739895522756,0.1414,95638.0,95623.0,2.41188]
[1739895522955,0.1414,95638.0,95637.0,0.2091826]
[1739895523154,0.24596,95638.0,95636.0,0.3608]
[1739895523352,0.15705588,95637.0,95636.0,0.3608]
[1739895523556,0.15705588,95637.0,95636.0,1.8608]
[1739895524053,0.15705588,95637.0,95636.0,2.0699848]
[1739895524644,0.15705588,95637.0,95636.0,1.8608]
[1739895525355,0.15705588,95637.0,95636.0,1.8638]
[1739895526451,0.15705588,95637.0,95636.0,2.0729848]
[1739895526652,0.05249588,95637.0,95636.0,2.4337848]
[1739895526962,0.1475,95653.0,95652.0,0.2091498]
[1739895527253,0.1475,95653.0,95652.0,0.5699498]
[1739895527445,0.15705588,95653.0,95652.0,0.5699498]
[1739895528352,0.15705588,95653.0,95652.0,0.3608]
[1739895529658,0.15705588,95653.0,95644.0,0.1496]
[1739895529859,0.05249588,95645.0,95644.0,0.7195652]
[1739895530245,0.05249588,95645.0,95644.0,0.5104]
[1739895530550,0.42866964,95662.0,95644.0,0.5104]
[1739895530777,0.10456,95661.0,95644.0,0.5104]
[1739895530956,0.62041446,95640.0,95638.0,0.2091804]
[1739895531254,0.3608,95639.0,95638.0,0.2091804]
[1739895531552,0.46536,95639.0,95637.0,0.1497]
[1739895531749,0.10456,95638.0,95637.0,0.16672382]
[1739895531950,0.10456,95638.0,95637.0,0.1497]
[1739895532258,0.00595655,95638.0,95637.0,0.1497]
[1739895532951,0.00595655,95638.0,95636.0,1.50144]
[1739895533261,0.00615665,95637.0,95636.0,1.5]
[1739895533647,0.3608,95639.0,95638.0,0.2091804]
[1739895534047,0.1327,95639.0,95638.0,0.2091804]
[1739895534353,0.1327,95639.0,95638.0,1.7091804]
[1739895535156,0.1327,95639.0,95638.0,2.6208204]
[1739895535351,0.62041446,95640.0,95639.0,0.2091782]
[1739895535550,0.40064013,95640.0,95639.0,0.2091782]
[1739895536054,0.40679678,95640.0,95639.0,1.7091782]
[1739895536247,0.40679678,95640.0,95639.0,1.5]
[1739895536958,0.40679678,95640.0,95639.0,2.53376747]
[1739895537360,0.40679678,95640.0,95639.0,2.74294567]
[1739895537658,0.40679678,95640.0,95639.0,2.74494567]
[1739895538452,0.40064013,95640.0,95639.0,2.74494567]
[1739895538651,0.2145072,95640.0,95639.0,2.74494567]
[1739895539563,0.2145072,95640.0,95639.0,3.37360161]
[1739895539764,0.00015597,95647.0,95646.0,0.2091629]
[1739895540351,0.00015597,95647.0,95646.0,1.7091629]
[1739895540552,0.00015597,95647.0,95646.0,1.97700686]
[1739895540753,2.0,95650.0,95649.0,0.2091563]
[1739895541156,1.5438,95650.0,95649.0,0.83780026]
[1739895541361,0.58568907,95650.0,95649.0,2.45408026]
[1739895541563,0.58568907,95650.0,95649.0,2.33780026]
[1739895542264,0.58668907,95650.0,95649.0,2.33780026]
[1739895542463,0.29910487,95650.0,95649.0,2.33780026]
[1739895542650,0.29910487,95650.0,95649.0,3.24928026]
[1739895542857,0.27390507,95650.0,95649.0,3.24928026]
[1739895543166,0.15236437,95650.0,95649.0,3.24928026]
[1739895543353,0.03978777,95650.0,95649.0,3.24928026]
[1739895543556,0.03978777,95650.0,95649.0,3.54928026]
[1739895543557,7e-08,95650.0,95649.0,3.54928026]
[1739895543955,2.0,95660.0,95659.0,0.2091345]
[1739895544164,2.0,95660.0,95659.0,0.5699345]
[1739895544552,2.0,95660.0,95659.0,2.0699345]
[1739895545772,2.0,95660.0,95659.0,2.0719345]
[1739895546161,1.96223,95660.0,95659.0,2.0719345]
[1739895546760,1.96223,95660.0,95659.0,2.08842144]
[1739895546954,1.96223,95660.0,95659.0,2.5614136]
[1739895548072,1.96223,95660.0,95659.0,2.3522791]
[1739895548263,1.96838665,95660.0,95659.0,1.9914791]
[1739895548464,1.96838665,95660.0,95659.0,2.5614136]
[1739895548661,1.96223,95660.0,95659.0,2.5614136]
[1739895548968,1.96223,95660.0,95659.0,3.4727336]
[1739895550259,1.96838665,95660.0,95659.0,3.78408128]
[1739895551362,1.96838665,95660.0,95659.0,3.57994678]
[1739895551668,1.96838665,95660.0,95659.0,3.78908128]
[1739895551859,1.96223,95660.0,95659.0,3.78908128]
[1739895552569,1.96223,95660.0,95659.0,3.78208128]
[1739895552770,1.96223,95660.0,95659.0,3.78908128]
[1739895553264,2.32918665,95660.0,95659.0,3.20265984]
[1739895553662,1.96838665,95660.0,95659.0,3.20265984]
[1739895553869,2.32918665,95660.0,95659.0,3.20265984]
[1739895554068,2.32918665,95660.0,95659.0,2.72966768]
[1739895554757,2.32918665,95660.0,95659.0,2.72266768]
[1739895554963,2.32918665,95660.0,95659.0,2.72966768]
[1739895555675,2.34587443,95660.0,95659.0,2.72966768]
[1739895555969,2.34587443,95660.0,95659.0,1.81134768]
[1739895556163,2.33971778,95660.0,95650.0,0.00015684]
[1739895556370,0.3608,95651.0,95632.0,0.91132]
[1739895556680,0.3608,95643.0,95636.0,0.61589666]
[1739895556874,0.3608,95643.0,95636.0,0.61729666]
[1739895557061,0.3608,95643.0,95642.0,1.93719958]
[1739895557265,0.3608,95643.0,95642.0,2.05343958]
[1739895557562,0.3568,95643.0,95642.0,2.05343958]
[1739895558170,0.3568,95643.0,95642.0,2.05943958]
[1739895558767,0.3568,95643.0,95642.0,1.61924]
[1739895558967,0.3568,95643.0,95642.0,1.503]
[1739895559163,0.36095684,95652.0,95642.0,1.503]
[1739895559361,0.1482,95651.0,95642.0,1.503]
[1739895559568,0.295,95651.0,95644.0,0.2091661]
[1739895559767,0.295,95651.0,95642.0,1.5044]
[1739895559970,0.295,95651.0,95643.0,0.11624]
[1739895560369,0.295,95651.0,95649.0,0.2091554]
[1739895561473,0.00015684,95652.0,95651.0,0.209152]
[1739895561668,0.00015684,95652.0,95651.0,1.120592]
[1739895561870,1.96223,95660.0,95651.0,1.49174]
[1739895562068,1.95961958,95660.0,95659.0,2.0699345]
[1739895563175,1.95961958,95660.0,95659.0,2.0769345]
[1739895564573,1.95961958,95660.0,95659.0,2.0699345]
[1739895564773,1.95961958,95660.0,95659.0,2.0769345]
[1739895565769,1.95961958,95660.0,95659.0,2.0699345]
[1739895565971,1.95961958,95660.0,95659.0,2.0769345]
[1739895567681,1.95961958,95660.0,95659.0,2.2964345]
[1739895567879,1.95961958,95660.0,95659.0,2.2894345]
[1739895568080,1.95961958,95660.0,95659.0,2.2964345]
[1739895568486,1.95961958,95660.0,95659.0,2.2894345]
[1739895568674,1.95961958,95660.0,95659.0,2.2964345]
[1739895569074,1.93553266,95660.0,95659.0,2.2964345]
[1739895572380,1.93553266,95660.0,95659.0,2.2894345]
[1739895572580,1.93553266,95660.0,95659.0,2.2964345]
[1739895574580,1.93553266,95660.0,95659.0,2.0873]
[1739895574980,1.93553266,95660.0,95659.0,1.7265]
[1739895575390,1.93553266,95660.0,95659.0,1.507]
[1739895575578,1.93553266,95660.0,95659.0,0.007]
[1739895576482,1.93553266,95660.0,95659.0,1.507]
[1739895578084,1.93553266,95660.0,95659.0,1.52328521]
[1739895581580,1.93553266,95660.0,95659.0,1.51628521]
[1739895581783,1.93553266,95660.0,95659.0,1.52328521]
[1739895583278,1.93553266,95660.0,95659.0,1.51628521]
[1739895583477,1.93553266,95660.0,95659.0,1.52328521]
[1739895583777,1.93553266,95660.0,95659.0,1.73241971]
[1739895585091,1.93553266,95660.0,95659.0,1.72541971]
[1739895585386,1.93553266,95660.0,95659.0,1.73241971]
[1739895585978,1.93553266,95660.0,95659.0,1.95191971]
[1739895585979,1.51404686,95660.0,95659.0,1.95191971]
[1739895586177,1.26582651,95660.0,95659.0,1.95191971]
[1739895586374,0.4314,95689.0,95669.0,0.2091126]
[1739895586580,0.4314,95689.0,95669.0,0.5699126]
[1739895586984,0.4314,95689.0,95669.0,2.0699126]
[1739895589382,0.4314,95689.0,95669.0,2.0769126]
[1739895591378,0.4314,95689.0,95669.0,1.8678]
[1739895591586,0.4314,95689.0,95669.0,2.4125726]
[1739895591890,0.4314,95689.0,95669.0,2.2964126]
[1739895592986,0.4314,95689.0,95669.0,3.2075726]
[1739895593879,0.4314,95689.0,95669.0,2.99846]
[1739895594883,0.4314,95689.0,95669.0,3.2075726]
[1739895595194,0.4314,95689.0,95669.0,2.99846]
[1739895595883,0.3608,95684.0,95669.0,2.99846]
[1739895597885,0.3608,95684.0,95669.0,3.2075726]
[1739895598086,0.4314,95689.0,95669.0,3.2075726]
[1739895599087,0.4314,95689.0,95669.0,2.99846]
[1739895599694,0.4314,95689.0,95669.0,3.2075726]
[1739895602085,0.3608,95685.0,95669.0,3.2075726]
[1739895602491,0.3608,95685.0,95669.0,2.63766]
[1739895603092,0.3608,95676.0,95669.0,2.41816]
[1739895603295,0.3608,95676.0,95669.0,2.53428]
[1739895603493,0.3608,95676.0,95669.0,2.41816]
[1739895603494,0.3608,95671.0,95669.0,2.41816]
[1739895603796,0.3608,95671.0,95669.0,2.53428]
[1739895603997,4.2867,95670.0,95669.0,2.53428]
[1739895604195,4.2867,95670.0,95669.0,1.507]
[1739895604391,4.2867,95670.0,95669.0,0.007]
[1739895604597,4.2867,95670.0,95663.0,0.18694196]
[1739895605394,4.2867,95670.0,95669.0,1.5]
[1739895605695,4.2867,95670.0,95663.0,0.18694196]
[1739895605992,4.2867,95670.0,95668.0,0.2091134]
[1739895606301,4.2867,95670.0,95664.0,0.0014]
[1739895606603,4.2867,95670.0,95669.0,0.007]
[1739895606996,4.2867,95670.0,95660.0,1.62657967]
[1739895607303,4.2867,95670.0,95660.0,0.12657967]
[1739895607799,4.2867,95670.0,95666.0,0.2091191]
[1739895608001,4.2867,95670.0,95661.0,1.50148]
[1739895608199,4.2867,95670.0,95663.0,0.2091242]
[1739895608699,4.2877,95670.0,95669.0,0.005]
[1739895609301,4.2877,95670.0,95665.0,0.2091203]
[1739895609495,4.001,95670.0,95668.0,0.2091127]
[1739895609900,4.001,95670.0,95669.0,0.005]
[1739895610202,4.001,95670.0,95669.0,1.62112]
[1739895611592,4.001,95670.0,95669.0,1.61612]
[1739895612903,4.001,95670.0,95669.0,1.83562]
[1739895612904,3.6767628,95670.0,95669.0,1.83562]
[1739895613093,3.42888061,95670.0,95669.0,1.5]
[1739895613897,3.40758912,95670.0,95669.0,1.5]
[1739895614306,3.40758912,95670.0,95669.0,2.41116]
[1739895615902,3.12000492,95670.0,95669.0,0.91116]
[1739895616401,3.12000492,95670.0,95669.0,2.41116]
[1739895617304,3.10723552,95670.0,95669.0,2.41116]
[1739895618109,3.10723552,95670.0,95669.0,0.91116]
[1739895618897,3.10723552,95670.0,95669.0,0.08216]
[1739895618898,2.94860528,95670.0,95669.0,0.08216]
[1739895621206,3.24860528,95670.0,95669.0,0.08216]
[1739895621404,3.24860528,95670.0,95662.0,0.24925595]
[1739895621604,0.3608,95663.0,95662.0,0.24925595]
[1739895621909,0.3608,95663.0,95656.0,0.31102587]
[1739895622102,0.3608,95657.0,95656.0,0.23972587]
[1739895622311,0.3608,95657.0,95641.0,0.2091723]
[1739895622610,0.3608,95652.0,95638.0,2.4126]
[1739895622912,0.3608,95652.0,95639.0,0.11608]
[1739895623110,0.3608,95652.0,95643.0,0.2091693]
[1739895623301,0.3548,95652.0,95638.0,1.52174744]
[1739895623501,0.3548,95652.0,95649.0,0.2091558]
[1739895623900,0.3608,95652.0,95649.0,0.2091558]
[1739895624110,0.3608,95652.0,95650.0,0.1623]
[1739895624608,0.3608,95652.0,95651.0,0.209152]
[1739895624912,0.3608,95662.0,95659.0,0.2091331]
[1739895625217,0.3608,95666.0,95661.0,1.5]
[1739895625912,3.07402811,95670.0,95661.0,1.5]
[1739895626112,0.3608,95662.0,95661.0,1.5]
[1739895626613,0.3608,95662.0,95661.0,1.61608]
[1739895627607,0.3608,95662.0,95661.0,0.11608]
[1739895629515,0.3608,95662.0,95655.0,0.11608]
[1739895629718,0.3608,95658.0,95654.0,0.00015684]
[1739895630216,0.38133117,95658.0,95654.0,0.00015684]
[1739895630723,0.68133117,95658.0,95631.0,0.3435]
[1739895630925,0.3608,95632.0,95631.0,0.3435]
[1739895632315,0.3608,95632.0,95622.0,0.00015684]
[1739895632519,0.3608,95623.0,95622.0,0.00015684]
[1739895634710,0.6608,95623.0,95622.0,0.00015684]
[1739895634911,0.3608,95623.0,95611.0,0.1674]
[1739895635316,0.3618,95623.0,95611.0,0.1674]
[1739895635715,0.3618,95623.0,95611.0,0.3766388]
[1739895636128,0.3618,95623.0,95611.0,0.16755684]
[1739895636329,0.6618,95623.0,95611.0,0.00015684]
[1739895636725,0.3608,95623.0,95611.0,0.00015684]
[1739895636924,0.3618,95623.0,95611.0,0.00015684]
[1739895637436,0.6618,95623.0,95611.0,0.00015684]
[1739895638038,0.3608,95612.0,95611.0,0.00015684]
[1739895639638,0.38131882,95612.0,95611.0,0.00015684]
[1739895644945,0.3608,95612.0,95611.0,0.00015684]
[1739895645432,0.00015684,95621.0,95611.0,0.00015684]
[1739895646035,0.18752622,95634.0,95611.0,0.00015684]
[1739895646234,0.18752622,95634.0,95621.0,0.209216]
[1739895646435,0.18752622,95634.0,95622.0,1.5]
[1739895646734,0.18752622,95634.0,95629.0,0.2091987]
[1739895646932,0.12642283,95650.0,95633.0,0.2091894]
[1739895647145,0.3608,95648.0,95630.0,0.91572283]
[1739895647331,0.00015684,95641.0,95630.0,0.91432283]
[1739895647736,0.00015684,95641.0,95630.0,0.7879]
[1739895647941,0.3608,95639.0,95630.0,0.7879]
[1739895648548,0.3608,95639.0,95630.0,0.4271]
[1739895649037,0.3608,95631.0,95630.0,0.4271]
[1739895650047,0.3608,95631.0,95630.0,0.637]
[1739895650346,0.3608,95631.0,95630.0,0.75308]
[1739895652753,0.3608,95631.0,95630.0,0.637]
[1739895653050,0.3608,95631.0,95630.0,0.75308]
[1739895654151,0.3608,95631.0,95630.0,0.637]
[1739895654351,0.3608,95631.0,95629.0,0.00015684]
[1739895656141,0.3628,95631.0,95629.0,0.00015684]
[1739895656653,0.3648,95631.0,95629.0,0.00015684]
[1739895657040,0.6648,95631.0,95629.0,0.00015684]
[1739895657241,0.209198,95630.0,95606.0,0.6446]
[1739895657444,0.3608,95607.0,95606.0,0.6446]
[1739895657650,0.3608,95607.0,95606.0,0.76068]
[1739895660148,0.37944009,95607.0,95606.0,0.76068]
[1739895661249,0.37944009,95607.0,95606.0,0.6446]
[1739895661441,0.74024009,95607.0,95606.0,0.4212]
[1739895661646,0.74024009,95607.0,95606.0,0.2157]
[1739895661846,1.04024009,95607.0,95597.0,0.00015684]
[1739895662151,0.3608,95598.0,95597.0,0.00015684]
[1739895662352,0.3608,95598.0,95585.0,0.01834995]
[1739895662550,0.3608,95586.0,95583.0,0.6542]
[1739895662753,0.3608,95586.0,95584.0,0.11604]
[1739895663255,0.3608,95586.0,95583.0,0.6542]
[1739895663450,0.3608,95586.0,95583.0,0.6528]
[1739895664547,0.3608,95584.0,95583.0,0.6528]
[1739895665145,0.3608,95584.0,95577.0,0.0014]
[1739895665458,0.3608,95584.0,95575.0,0.11623693]
[1739895665459,0.37930718,95584.0,95575.0,0.00015693]
[1739895665754,0.3608,95576.0,95575.0,0.00015693]
[1739895669451,0.3608,95576.0,95547.0,0.209379]
[1739895669654,0.3608,95548.0,95547.0,0.209379]
[1739895669850,0.3608,95548.0,95547.0,1.72785407]
[1739895670552,0.3608,95548.0,95547.0,1.5]
[1739895670746,0.3608,95548.0,95547.0,1.61608]
[1739895671053,0.3608,95548.0,95547.0,1.5]
[1739895671445,0.3608,95548.0,95546.0,0.6512]
[1739895671645,0.3608,95548.0,95546.0,0.6498]
[1739895675052,0.16334361,95548.0,95546.0,0.6498]
[1739895676359,0.00015693,95557.0,95546.0,0.6498]
[1739895676564,0.3608,95551.0,95546.0,0.6498]
[1739895676754,0.3608,95551.0,95547.0,0.11608]
[1739895676955,0.00015693,95557.0,95554.0,0.2093633]
[1739895677160,0.3608,95569.0,95556.0,0.3608]
[1739895677852,0.3608,95569.0,95556.0,0.37932768]
[1739895678057,0.3608,95569.0,95556.0,0.3608]
[1739895678466,0.01892292,95566.0,95557.0,0.11612]
[1739895678660,0.22,95563.0,95557.0,0.11612]
[1739895680468,0.3608,95558.0,95552.0,0.11608]
[1739895680663,0.3608,95558.0,95549.0,0.2236]
[1739895680860,0.3608,95550.0,95549.0,0.2236]
[1739895681966,0.3608,95550.0,95533.0,0.2275]
[1739895682168,0.12642283,95548.0,95534.0,0.2315]
[1739895682656,0.2377,95549.0,95534.0,0.2315]
[1739895683264,0.2377,95549.0,95539.0,0.2093963]
[1739895683462,0.2377,95549.0,95534.0,0.2315]
[1739895684071,0.2377,95549.0,95538.0,0.20955613]
[1739895684272,0.48822283,95550.0,95538.0,0.20955613]
[1739895684767,0.2325,95557.0,95538.0,0.20955613]
[1739895684768,0.001,95549.0,95538.0,0.00015693]
[1739895684956,0.001,95549.0,95543.0,0.3608]
[1739895685157,0.001,95549.0,95544.0,0.11612]
[1739895685369,0.001,95549.0,95545.0,0.2172]
[1739895685858,0.3608,95546.0,95545.0,0.2172]
[1739895686569,0.12642283,95553.0,95545.0,0.2172]
[1739895687071,0.2325,95557.0,95545.0,0.2172]
[1739895687462,0.3608,95558.0,95545.0,0.2172]
[1739895687664,0.3608,95558.0,95545.0,0.4265826]
[1739895687868,0.3608,95558.0,95545.0,0.2172]
[1739895690669,0.3608,95550.0,95544.0,0.11612]
[1739895693873,0.3608,95550.0,95549.0,0.2093752]
[1739895694174,0.05091866,95557.0,95543.0,0.3608]
[1739895694371,0.05091866,95557.0,95545.0,0.2093839]
[1739895694868,0.05091866,95549.0,95547.0,0.209379]
[1739895695069,0.05091866,95549.0,95548.0,0.2277]
[1739895696772,0.05091866,95549.0,95536.0,0.3608]
[1739895696968,0.12642283,95548.0,95536.0,0.3608]
[1739895697168,0.35302283,95548.0,95534.0,0.2315]
[1739895697572,0.3608,95545.0,95534.0,0.2315]
[1739895700472,0.3608,95545.0,95534.0,0.4409076]
[1739895702280,0.23799284,95544.0,95534.0,0.4409076]
[1739895702978,0.23799284,95544.0,95534.0,0.2315]
[1739895704279,0.3608,95543.0,95534.0,0.2315]
[1739895704483,0.3608,95543.0,95518.0,0.2094426]
[1739895704484,0.7474,95543.0,95518.0,0.4646]
[1739895704686,0.3608,95533.0,95521.0,0.2094362]
[1739895704982,0.3608,95533.0,95519.0,0.2192]
[1739895705479,0.3608,95520.0,95519.0,0.2192]
[1739895706282,0.37993154,95520.0,95519.0,0.2192]
[1739895707675,0.38093154,95520.0,95519.0,0.2192]
[1739895711088,0.4318502,95520.0,95519.0,0.2192]
[1739895715680,0.4318502,95520.0,95516.0,0.00015701]
[1739895715889,0.3608,95517.0,95516.0,0.00015701]
[1739895716085,0.3608,95517.0,95508.0,0.2294]
[1739895716086,0.2094495,95516.0,95508.0,0.2294]
[1739895716286,0.3608,95509.0,95508.0,0.2294]
[1739895718893,0.59949516,95509.0,95508.0,0.2294]
[1739895721187,0.80895926,95509.0,95500.0,0.1]
[1739895721689,0.59949516,95509.0,95500.0,0.1]
[1739895722497,0.60049516,95509.0,95500.0,0.1]
[1739895724494,0.3608,95501.0,95479.0,0.0014]
[1739895724693,0.3608,95481.0,95480.0,0.2317]
[1739895725286,0.5872707,95481.0,95468.0,0.2324]
[1739895725495,0.3608,95470.0,95469.0,0.2317]
[1739895725791,0.3608,95470.0,95455.0,0.2399]
[1739895725998,0.3608,95456.0,95455.0,0.2399]
[1739895727001,0.37773405,95456.0,95455.0,0.2399]
[1739895727600,0.37773405,95456.0,95450.0,0.2197]
[1739895728498,0.37873405,95456.0,95450.0,0.2197]
[1739895728708,0.37873405,95456.0,95444.0,0.24930485]
[1739895728897,0.3608,95445.0,95444.0,0.24930485]
[1739895730719,0.3608,95445.0,95431.0,0.241]
[1739895730914,0.3608,95435.0,95431.0,0.241]
[1739895732011,0.3608,95435.0,95419.0,1.5014]
[1739895732314,0.3608,95426.0,95417.0,0.2405]
[1739895732915,0.2096732,95414.0,95410.0,0.2363]
[1739895733122,0.3608,95415.0,95401.0,0.2285]
[1739895733307,0.3608,95406.0,95401.0,0.4648]
[1739895734315,0.01668752,95406.0,95401.0,0.4648]
[1739895734617,0.001,95406.0,95401.0,0.4648]
[1739895735322,0.12642283,95411.0,95401.0,0.4648]
[1739895735910,0.14330191,95411.0,95401.0,0.4648]
[1739895737225,0.01687908,95411.0,95405.0,0.2096902]
[1739895737428,0.3608,95415.0,95406.0,0.2475]
[1739895737729,0.3608,95415.0,95407.0,1.5]
[1739895737926,0.00015719,95420.0,95414.0,0.3608]
[1739895738520,0.001,95415.0,95414.0,0.3608]
[1739895738720,0.00015719,95420.0,95414.0,0.47712]
[1739895739035,0.00015719,95420.0,95415.0,0.2096693]
[1739895739226,0.00015719,95420.0,95414.0,0.3608]
[1739895739829,0.00015719,95420.0,95417.0,0.2096635]
[1739895740025,0.01683633,95432.0,95418.0,0.2282]
[1739895740331,0.3608,95453.0,95418.0,0.2282]
[1739895740332,0.12642283,95440.0,95428.0,0.3608]
[1739895740825,0.3608,95437.0,95428.0,0.3608]
[1739895741028,0.3608,95437.0,95429.0,0.11668]
[1739895741332,0.001,95432.0,95429.0,0.11668]
[1739895741733,0.001,95432.0,95425.0,0.11676]
[1739895741933,0.3608,95427.0,95423.0,0.00015719]
[1739895742235,0.3608,95424.0,95408.0,0.2306]
[1739895742535,0.12642283,95418.0,95408.0,0.2306]
[1739895743335,0.12642283,95418.0,95409.0,0.4908]
[1739895743530,0.12642283,95418.0,95412.0,0.3608]
[1739895743734,0.12842283,95418.0,95412.0,0.3608]
[1739895744233,0.12642283,95422.0,95412.0,0.3608]
[1739895744431,0.00015719,95423.0,95412.0,0.3608]
[1739895744824,0.00015719,95423.0,95412.0,0.3618]
[1739895745429,0.00015719,95423.0,95412.0,0.5714752]
[1739895746031,0.00015719,95423.0,95422.0,0.3608]
[1739895746739,0.00015719,95423.0,95408.0,0.2306]
[1739895746941,0.3608,95411.0,95408.0,0.2306]
[1739895747239,0.3608,95411.0,95408.0,0.34788]
[1739895747539,0.3598,95411.0,95408.0,0.34788]
[1739895748038,0.3598,95411.0,95408.0,0.2306]
[1739895748229,0.3608,95411.0,95408.0,0.2306]
[1739895749144,0.37753494,95411.0,95408.0,0.2306]
[1739895749534,0.37753494,95411.0,95401.0,0.4763]
[1739895749725,0.3608,95402.0,95400.0,0.1]
[1739895751043,0.3608,95402.0,95400.0,0.101]
[1739895753841,0.5704994,95402.0,95400.0,0.101]
[1739895754541,0.219,95401.0,95400.0,0.09774979]
[1739895754727,0.4453,95401.0,95385.0,0.2472]
[1739895754932,0.3608,95386.0,95385.0,0.2472]
[1739895756038,0.3598,95386.0,95378.0,0.4752]
[1739895756233,0.3608,95379.0,95374.0,0.2365]
[1739895756429,0.3608,95379.0,95364.0,0.2513]
[1739895756629,0.3608,95366.0,95364.0,0.2513]
[1739895757039,0.3608,95366.0,95364.0,0.4610812]
[1739895757237,0.00015727,95375.0,95373.0,0.2097612]
[1739895757544,0.00015727,95375.0,95374.0,0.3608]
[1739895758537,0.219,95385.0,95374.0,0.3608]
[1739895758538,0.01748288,95383.0,95374.0,0.3608]
[1739895758737,0.219,95385.0,95374.0,0.3608]
[1739895758935,0.219,95385.0,95375.0,0.11788]
[1739895759139,0.23620746,95385.0,95375.0,0.11788]
[1739895759334,0.05101784,95378.0,95374.0,0.3608]
[1739895760233,0.05101784,95378.0,95370.0,0.3608]
[1739895760945,0.05101784,95378.0,95370.0,0.5705675]
[1739895761141,0.05101784,95378.0,95370.0,0.7216]
[1739895761442,0.05101784,95378.0,95376.0,0.2097532]
[1739895761644,0.05101784,95378.0,95370.0,0.9313677]
[1739895761845,0.05101784,95378.0,95371.0,0.2097641]
[1739895762145,0.05101784,95378.0,95370.0,0.7216]
[1739895762443,0.05101784,95378.0,95372.0,1.5]
[1739895762843,0.3608,95373.0,95372.0,1.18281155]
[1739895763032,0.5798,95373.0,95342.0,0.2569]
[1739895763232,0.3608,95349.0,95342.0,0.2569]
[1739895763632,0.37797667,95349.0,95342.0,0.2569]
[1739895763833,0.01717667,95349.0,95343.0,0.1861435]
[1739895764038,0.3608,95352.0,95343.0,0.1861435]
[1739895764947,0.37775101,95352.0,95343.0,0.1861435]